lending/lending_fUSD_20241229
["ID","MTS","AMOUNT","RATE_DAILY","PERIOD"]
[347030463,1735475456835,-500.0,0.00012762,2]
[347030464,1735475456845,-500.0,0.00012762,2]
[347030465,1735475456854,-513.16900794,0.00012762,2]
[347030466,1735475456864,-500.0,0.00012762,2]
[347030467,1735475456873,-500.0,0.00012762,2]
[347030468,1735475456883,-500.0,0.00012762,2]
[347030469,1735475456892,-500.0,0.00012762,2]
[347030470,1735475456902,-500.0,0.00012762,2]
[347030471,1735475456911,-505.87427498,0.00012762,2]
[347030472,1735475456920,-500.0,0.00012762,2]
[347030473,1735475456929,-500.0,0.00012762,2]
[347030474,1735475456938,-451.74750534,0.00012762,2]
[347030475,1735475456947,-505.50906787,0.00012762,2]
[347030476,1735475456956,-500.0,0.00012762,2]
[347030477,1735475456965,-500.0,0.00012762,2]
[347030478,1735475456974,-500.0,0.00012762,2]
[347030479,1735475456983,-500.0,0.00012762,2]
[347030480,1735475456992,-500.0,0.00012762,2]
[347030481,1735475457001,-500.0,0.00012762,2]
[347030482,1735475457011,-500.0,0.00012762,2]
[347030483,1735475457020,-500.0,0.00012762,2]
[347030484,1735475457029,-500.0,0.00012762,2]
[347030485,1735475457038,-500.0,0.00012762,2]
[347030486,1735475457047,-500.0,0.00012762,2]
[347030487,1735475457057,-500.0,0.00012762,2]
[347030488,1735475457066,-500.0,0.00012762,2]
[347030489,1735475457074,-500.0,0.00012762,2]
[347030490,1735475457083,-500.0,0.00012762,2]
[347030491,1735475457092,-500.0,0.00012762,2]
[347030492,1735475457101,-500.0,0.00012762,2]
[347030493,1735475457110,-500.0,0.00012762,2]
[347030494,1735475457119,-549.30470289,0.00012762,2]
[347030495,1735475457131,-500.0,0.00012762,2]
[347030496,1735475457140,-500.0,0.00012762,2]
[347030497,1735475457149,-500.0,0.00012762,2]
[347030498,1735475457159,-500.0,0.00012762,2]
[347030499,1735475457168,-630.2,0.00012762,2]
[347030500,1735475457178,-500.0,0.00012762,2]
[347030501,1735475457187,-500.0,0.00012762,2]
[347030502,1735475457196,-500.0,0.00012762,2]
[347030503,1735475457205,-500.0,0.00012762,2]
[347030504,1735475457215,-564.73098524,0.00012762,2]
[347030505,1735475457225,-500.0,0.00012762,2]
[347030506,1735475457234,-500.0,0.00012762,2]
[347030507,1735475457243,-500.0,0.00012762,2]
[347030508,1735475457253,-502.11836469,0.00012762,2]
[347030509,1735475457262,-500.0,0.00012762,2]
[347030510,1735475457272,-509.56748983,0.00012762,2]
[347030511,1735475457281,-500.0,0.00012762,2]
[347030512,1735475457290,-1000.0,0.00012762,2]
[347030513,1735475457300,-500.0,0.00012762,2]
[347030514,1735475457309,-605.25,0.00012762,2]
[347030515,1735475457318,-500.0,0.00012762,2]
[347030516,1735475457327,-500.0,0.00012762,2]
[347030517,1735475457337,-500.0,0.00012762,2]
[347030518,1735475457346,-500.0,0.00012762,2]
[347030519,1735475457355,-500.0,0.00012762,2]
[347030520,1735475457364,-500.0,0.00012762,2]
[347030521,1735475457373,-514.3980268,0.00012762,2]
[347030522,1735475457385,-504.66830843,0.00012762,2]
[347030523,1735475457394,-500.0,0.00012762,2]
[347030524,1735475457404,-500.0,0.00012762,2]
[347030525,1735475457414,-500.0,0.00012762,2]
[347030526,1735475457424,-500.0,0.00012762,2]
[347030527,1735475457433,-500.0,0.00012762,2]
[347030528,1735475457443,-500.0,0.00012762,2]
[347030529,1735475457452,-500.0,0.00012762,2]
[347030530,1735475457464,-501.15987163,0.00012762,2]
[347030531,1735475457473,-500.0,0.00012762,2]
[347030532,1735475457483,-500.0,0.00012762,2]
[347030533,1735475457492,-500.0,0.00012762,2]
[347030534,1735475457501,-500.0,0.00012762,2]
[347030535,1735475457510,-500.0,0.00012762,2]
[347030536,1735475457519,-500.0,0.00012762,2]
[347030537,1735475457529,-500.0,0.00012762,2]
[347030538,1735475457538,-500.0,0.00012762,2]
[347030539,1735475457547,-500.0,0.00012762,2]
[347030540,1735475457557,-500.0,0.00012762,2]
[347030541,1735475457693,-500.0,0.00012762,2]
[347030542,1735475457703,-500.0,0.00012762,2]
[347030543,1735475457713,-500.0,0.00012762,2]
[347030544,1735475457722,-500.0,0.00012762,2]
[347030545,1735475457732,-500.0,0.00012762,2]
[347030546,1735475457741,-500.0,0.00012762,2]
[347030547,1735475457751,-500.0,0.00012762,2]
[347030548,1735475457760,-500.0,0.00012762,2]
[347030549,1735475457770,-500.0,0.00012762,2]
[347030550,1735475457780,-500.0,0.00012762,2]
[347030551,1735475457790,-500.0,0.00012762,2]
[347030552,1735475457799,-500.0,0.00012762,2]
[347030553,1735475457809,-500.0,0.00012762,2]
[347030554,1735475457818,-500.0,0.00012762,2]
[347030555,1735475457828,-630.55457995,0.00012762,2]
[347030556,1735475457837,-500.0,0.00012762,2]
[347030557,1735475457849,-500.0,0.00012762,2]
[347030558,1735475457858,-500.0,0.00012762,2]
[347030559,1735475457867,-500.0,0.00012762,2]
[347030560,1735475457878,-150.0,0.00012762,2]
[347030561,1735475457888,-500.0,0.00012762,2]
[347030562,1735475457898,-500.0,0.00012762,2]
[347030563,1735475457907,-5000.0,0.00012762,2]
[347030564,1735475457917,-500.0,0.00012762,2]
[347030565,1735475457926,-500.0,0.00012762,2]
[347030566,1735475457936,-500.0,0.00012762,2]
[347030567,1735475457945,-500.0,0.00012762,2]
[347030568,1735475457954,-500.0,0.00012762,2]
[347030569,1735475457963,-500.0,0.00012762,2]
[347030570,1735475457973,-500.0,0.00012762,2]
[347030571,1735475457982,-500.0,0.00012762,2]
[347030572,1735475457991,-500.0,0.00012762,2]
[347030573,1735475458000,-500.0,0.00012762,2]
[347030574,1735475458010,-500.0,0.00012762,2]
[347030575,1735475458020,-606.37177322,0.00012762,2]
[347030576,1735475458028,-500.0,0.00012762,2]
[347030577,1735475458037,-500.0,0.00012762,2]
[347030578,1735475458046,-1532.74,0.00012762,2]
[347030579,1735475458055,-500.0,0.00012762,2]
[347030580,1735475458064,-500.0,0.00012762,2]
[347030581,1735475458074,-500.0,0.00012762,2]
[347030582,1735475458083,-500.0,0.00012762,2]
[347030583,1735475458092,-500.0,0.00012762,2]
[347030584,1735475458101,-500.0,0.00012762,2]
[347030585,1735475458110,-500.0,0.00012762,2]
[347030586,1735475458119,-733.44,0.00012762,2]
[347030587,1735475458129,-500.0,0.00012762,2]
[347030588,1735475458138,-500.0,0.00012762,2]
[347030589,1735475458147,-500.0,0.00012762,2]
[347030590,1735475458156,-500.0,0.00012762,2]
[347030591,1735475458166,-500.0,0.00012762,2]
[347030592,1735475458175,-500.0,0.00012762,2]
[347030593,1735475458184,-500.0,0.00012762,2]
[347030594,1735475458193,-719.11,0.00012762,2]
[347030595,1735475458202,-500.0,0.00012762,2]
[347030596,1735475458211,-500.0,0.00012762,2]
[347030597,1735475458220,-500.0,0.00012762,2]
[347030598,1735475458229,-1460.65,0.00012762,2]
[347030599,1735475458238,-500.0,0.00012762,2]
[347030600,1735475458248,-500.0,0.00012762,2]
[347030601,1735475458257,-500.0,0.00012762,2]
[347030602,1735475458266,-500.0,0.00012762,2]
[347030603,1735475458275,-500.0,0.00012762,2]
[347030604,1735475458284,-500.0,0.00012762,2]
[347030605,1735475458293,-312.64717869,0.00012762,2]
[347030606,1735475458303,-500.0,0.00012762,2]
[347030607,1735475458312,-750.12,0.00012762,2]
[347030608,1735475458321,-535.13837622,0.00012762,2]
[347030609,1735475458330,-1109.49,0.00012762,2]
[347030610,1735475458339,-500.0,0.00012762,2]
[347030611,1735475458349,-500.0,0.00012762,2]
[347030612,1735475458358,-500.0,0.00012762,2]
[347030613,1735475458368,-500.0,0.00012762,2]
[347030614,1735475458379,-600.91,0.00012762,2]
[347030615,1735475458390,-600.91,0.00012762,2]
[347030616,1735475458399,-500.0,0.00012762,2]
[347030617,1735475458408,-500.0,0.00012762,2]
[347030618,1735475458418,-839.66,0.00012762,2]
[347030619,1735475458427,-500.0,0.00012762,2]
[347030620,1735475458438,-858.36,0.00012762,2]
[347030621,1735475458448,-2175.22,0.00012762,2]
[347030622,1735475458457,-500.0,0.00012762,2]
[347030623,1735475458467,-1006.78,0.00012762,2]
[347030624,1735475458476,-500.0,0.00012762,2]
[347030625,1735475458486,-572.19,0.00012762,2]
[347030626,1735475458495,-500.0,0.00012762,2]
[347030627,1735475458504,-500.0,0.00012762,2]
[347030628,1735475458513,-1027.3,0.00012762,2]
[347030629,1735475458522,-500.0,0.00012762,2]
[347030630,1735475458532,-4079.22,0.00012762,2]
[347030631,1735475458541,-692.82,0.00012762,2]
[347030632,1735475458550,-500.0,0.00012762,2]
[347030633,1735475458560,-1994.24,0.00012762,2]
[347030634,1735475458569,-500.0,0.00012762,2]
[347030635,1735475458579,-500.0,0.00012762,2]
[347030636,1735475458588,-500.0,0.00012762,2]
[347030637,1735475458598,-3659.32,0.00012762,2]
[347030638,1735475458607,-2069.05,0.00012762,2]
[347030639,1735475458616,-7557.34,0.00012762,2]
[347030640,1735475458627,-500.0,0.00012762,2]
[347030641,1735475458636,-500.0,0.00012762,2]
[347030642,1735475458648,-2083.44,0.00012762,2]
[347030643,1735475458657,-3520.02,0.00012762,2]
[347030644,1735475458666,-2292.03,0.00012762,2]
[347030645,1735475458675,-391.2,0.00012762,2]
[347030646,1735475458685,-1583.93,0.00012762,2]
[347030647,1735475458694,-500.0,0.00012762,2]
[347030648,1735475458704,-1820.36,0.00012762,2]
[347030649,1735475458714,-3279.26,0.00012763,2]
[347030650,1735475458724,-787.2,0.00012763,2]
[347030651,1735475458734,-500.0,0.00012763,2]
[347030652,1735475458743,-500.0,0.00012763,2]
[347030653,1735475458752,-984.52,0.00012763,2]
[347030654,1735475458761,-826.26,0.00012763,2]
[347030655,1735475458770,-629.08,0.00012763,2]
[347030656,1735475458779,-747.27,0.00012763,2]
[347030657,1735475458789,-1533.87,0.00012763,2]
[347030658,1735475458798,-1456.69,0.00012763,2]
[347030659,1735475458808,-500.0,0.00012763,2]
[347030660,1735475458817,-1974.42,0.00012763,2]
[347030661,1735475458827,-15074.56,0.00012763,2]
[347030662,1735475458836,-1702.09,0.00012763,2]
[347030663,1735475458846,-1011.72,0.00012763,2]
[347030664,1735475458855,-1950.92,0.00012763,2]
[347030665,1735475458864,-1999.97,0.00012763,2]
[347030666,1735475458874,-2963.08,0.00012763,2]
[347030667,1735475458884,-12143.13,0.00012763,2]
[347030668,1735475458893,-2147.04,0.00012763,2]
[347030669,1735475458902,-500.0,0.00012763,2]
[347030670,1735475458912,-994.06,0.00012763,2]
[347030671,1735475458921,-500.0,0.00012763,2]
[347030672,1735475458930,-1000.0,0.00012763,2]
[347030673,1735475458939,-800.66,0.00012763,2]
[347030674,1735475458949,-500.0,0.00012763,2]
[347030675,1735475458959,-1268.2,0.00012763,2]
[347030676,1735475458968,-500.0,0.00012763,2]
[347030677,1735475458977,-2008.7,0.00012763,2]
[347030678,1735475458986,-150.0,0.00012767,2]
[347030679,1735475458995,-1917.233,0.00012786,2]
[347030680,1735475459005,-157.647,0.00012786,2]
[347030681,1735475459014,-700.0,0.000128,4]
[347030682,1735475459023,-1105.45646087,0.00012805,2]
[347030683,1735475459032,-150.0,0.0001282,2]
[347030684,1735475459041,-190.63328045,0.00012849,2]
[347030685,1735475459050,-25515.53565678,0.00012849,2]
[347030686,1735475459060,-150.0,0.00012849,2]
[347030687,1735475459069,-150.0,0.00012849,2]
[347030688,1735475459078,-150.0,0.00012849,2]
[347030689,1735475459087,-978.28,0.00012849,2]
[347030690,1735475459097,-617828.83143339,0.0001285,2]
[347030691,1735475459106,-500.0,0.0001287,2]
[347030692,1735475459115,-484.726,0.00012896,2]
[347030693,1735475459124,-700.0,0.000129,4]
[347030694,1735475459134,-163.83827034,0.000129,2]
[347030695,1735475459143,-500.0,0.0001296,2]
[347030696,1735475459152,-17037.39588485,0.00012961,2]
[347030697,1735475459162,-500.0,0.00012973,2]
[347030698,1735475459171,-500.0,0.00012986,2]
[347030699,1735475459180,-500.0,0.00012986,2]
[347030700,1735475459189,-500.0,0.00012986,2]
[347030701,1735475459198,-500.0,0.00012986,2]
[347030702,1735475459207,-500.0,0.00012986,2]
[347030703,1735475459216,-423.94236554,0.00012994,2]
[347030704,1735475459225,-318.82,0.00012999,2]
[347030705,1735475459234,-503.01321322,0.00012999,2]
[347030706,1735475459244,-600.91,0.00012999,2]
[347030707,1735475459253,-600.91,0.00012999,2]
[347030708,1735475459262,-600.91,0.00012999,2]
[347030709,1735475459272,-600.91,0.00012999,2]
[347030710,1735475459282,-600.91,0.00012999,2]
[347030711,1735475459292,-600.91,0.00012999,2]
[347030712,1735475459301,-600.91,0.00012999,2]
[347030713,1735475459310,-600.91,0.00012999,2]
[347030714,1735475459320,-600.91,0.00012999,2]
[347030715,1735475459329,-600.91,0.00012999,2]
[347030716,1735475459338,-600.91,0.00012999,2]
[347030717,1735475459347,-600.91,0.00012999,2]
[347030718,1735475459356,-600.91,0.00012999,2]
[347030719,1735475459367,-600.91,0.00012999,2]
[347030720,1735475459376,-600.91,0.00012999,2]
[347030721,1735475459387,-600.91,0.00012999,2]
[347030722,1735475459397,-600.91,0.00012999,2]
[347030723,1735475459406,-600.91,0.00012999,2]
[347030724,1735475459415,-600.91,0.00012999,2]
[347030725,1735475459425,-600.91,0.00012999,2]
[347030726,1735475459434,-601.03,0.00012999,2]
[347030727,1735475459444,-500.0,0.00012999,2]
[347030728,1735475459453,-500.0,0.00012999,2]
[347030729,1735475459463,-500.0,0.00012999,2]
[347030730,1735475459472,-539.898985,0.00012999,2]
[347030731,1735475459481,-1027.3,0.00012999,2]
[347030732,1735475459490,-1027.3,0.00012999,2]
[347030733,1735475459500,-1027.3,0.00012999,2]
[347030734,1735475459509,-1027.3,0.00012999,2]
[347030735,1735475459518,-1027.3,0.00012999,2]
[347030736,1735475459527,-1027.3,0.00012999,2]
[347030737,1735475459536,-500.0,0.00012999,2]
[347030738,1735475459545,-1027.3,0.00012999,2]
[347030739,1735475459556,-1027.3,0.00012999,2]
[347030740,1735475459565,-1027.3,0.00012999,2]
[347030741,1735475459574,-1027.3,0.00012999,2]
[347030742,1735475459584,-1027.3,0.00012999,2]
[347030743,1735475459593,-1027.3,0.00012999,2]
[347030744,1735475459602,-1027.3,0.00012999,2]
[347030745,1735475459611,-4079.22,0.00012999,2]
[347030746,1735475459621,-4079.22,0.00012999,2]
[347030747,1735475459632,-1027.3,0.00012999,2]
[347030748,1735475459642,-4079.22,0.00012999,2]
[347030749,1735475459651,-4079.22,0.00012999,2]
[347030750,1735475459660,-1027.3,0.00012999,2]
[347030751,1735475459669,-4079.22,0.00012999,2]
[347030752,1735475459679,-4079.22,0.00012999,2]
[347030753,1735475459688,-4079.22,0.00012999,2]
[347030754,1735475459697,-1027.3,0.00012999,2]
[347030755,1735475459706,-4079.22,0.00012999,2]
[347030756,1735475459716,-4079.22,0.00012999,2]
[347030757,1735475459725,-1027.3,0.00012999,2]
[347030758,1735475459734,-4079.22,0.00012999,2]
[347030759,1735475459743,-4079.22,0.00012999,2]
[347030760,1735475459752,-4079.22,0.00012999,2]
[347030761,1735475459761,-1027.3,0.00012999,2]
[347030762,1735475459771,-4079.22,0.00012999,2]
[347030763,1735475459780,-4079.22,0.00012999,2]
[347030764,1735475459789,-1027.3,0.00012999,2]
[347030765,1735475459799,-4079.22,0.00012999,2]
[347030766,1735475459933,-4079.22,0.00012999,2]
[347030767,1735475459943,-4079.22,0.00012999,2]
[347030768,1735475459952,-1027.3,0.00012999,2]
[347030769,1735475459961,-4079.22,0.00012999,2]
[347030770,1735475459971,-4079.22,0.00012999,2]
[347030771,1735475459980,-4079.22,0.00012999,2]
[347030772,1735475459989,-1027.3,0.00012999,2]
[347030773,1735475459998,-4079.22,0.00012999,2]
[347030774,1735475460007,-4079.22,0.00012999,2]
[347030775,1735475460016,-4079.28491239,0.00012999,2]
[347030776,1735475460026,-1027.3,0.00012999,2]
[347030777,1735475460035,-1027.4,0.00012999,2]
[347030778,1735475460045,-500.0,0.00012999,2]
[347030779,1735475460054,-500.0,0.00012999,2]
[347030780,1735475460063,-500.0,0.00012999,2]
[347030781,1735475460073,-500.0,0.00012999,2]
[347030782,1735475460082,-500.0,0.00012999,2]
[347030783,1735475460091,-500.0,0.00012999,2]
[347030784,1735475460101,-500.0,0.00012999,2]
[347030785,1735475460110,-217.15249173,0.00012999,2]
[347030786,1735475460119,-745.35,0.00012999,2]
[347030787,1735475460130,-500.0,0.00012999,2]
[347030788,1735475460139,-500.0,0.00012999,2]
[347030789,1735475460149,-500.0,0.00012999,2]
[347030790,1735475460158,-500.0,0.00012999,2]
[347030791,1735475460167,-500.0,0.00012999,2]
[347030792,1735475460177,-500.0,0.00012999,2]
[347030793,1735475460186,-500.0,0.00012999,2]
[347030794,1735475460195,-500.0,0.00012999,2]
[347030795,1735475460204,-500.0,0.00012999,2]
[347030796,1735475460214,-500.0,0.00012999,2]
[347030797,1735475460223,-500.0,0.00012999,2]
[347030798,1735475460232,-500.0,0.00012999,2]
[347030799,1735475460242,-500.0,0.00012999,2]
[347030800,1735475460252,-500.0,0.00012999,2]
[347030801,1735475460261,-500.0,0.00012999,2]
[347030802,1735475460271,-559.2764455,0.00012999,2]
[347030803,1735475460280,-627.0,0.00013,2]
[347030804,1735475460290,-4856.85233627,0.00013,2]
[347030805,1735475460300,-313807.47331584,0.00013,2]
[347030806,1735475460310,-46370.47155516,0.00013,2]
[347030807,1735475460319,-4227.35454851,0.00013,2]
[347030808,1735475460329,-244100.6948016,0.00013,2]
[347030809,1735475460338,-449917.12378305,0.00013,2]
[347030810,1735475460348,-151.102112,0.00013,2]
[347030811,1735475460357,-656779.62541721,0.00013,2]
[347030812,1735475460775,-500.0,0.00012761,2]
[347030813,1735475460785,-14292.9989704,0.00013,2]
[347030816,1735475952675,500.0,0.00024692,120]
[347030817,1735475961027,500.0,0.00024692,120]
[347030818,1735476016179,339.12,9.207e-05,2]
[347030824,1735476214645,400.19,0.00016658,30]
[347030838,1735476511703,150.0,0.00011097,2]
[347030856,1735476631885,-2000.0,0.00011112,2]
[347030857,1735476631895,-734.16,0.00011113,2]
[347030859,1735476631905,-1000.0,0.00011116,2]
[347030861,1735476631914,-250.0,0.00011116,2]
[347030862,1735476631924,-300.0,0.00011118,2]
[347030864,1735476631934,-23900.0,0.00011119,2]
[347030866,1735476631944,-250.0,0.00011124,2]
[347030868,1735476631955,-163.53,0.00011128,2]
[347030870,1735476631965,-250.0,0.00011129,2]
[347030872,1735476631974,-378.85,0.00011136,2]
[347030873,1735476631984,-553.55,0.00011172,2]
[347030875,1735476631993,-504.5,0.00011186,2]
[347030877,1735476632002,-339.12,0.00011471,2]
[347030878,1735476632012,-166.43,0.00011661,2]
[347030879,1735476632022,-150.0,0.00011688,2]
[347030880,1735476632032,-316.45,0.00011956,2]
[347030881,1735476632042,-316.45,0.00011959,2]
[347030882,1735476632051,-316.45,0.00011962,2]
[347030883,1735476632060,-316.45,0.00011965,2]
[347030884,1735476632070,-316.45,0.00011968,2]
[347030885,1735476632079,-316.45,0.00011972,2]
[347030886,1735476632088,-316.45,0.00011975,2]
[347030887,1735476632098,-316.45,0.00011978,2]
[347030888,1735476632108,-316.45,0.00011981,2]
[347030889,1735476632117,-316.45,0.00011984,2]
[347030890,1735476632127,-316.45,0.00011987,2]
[347030891,1735476632137,-338.67,0.00011988,2]
[347030892,1735476632147,-316.45,0.0001199,2]
[347030893,1735476632157,-316.45,0.00011994,2]
[347030894,1735476632166,-316.45,0.00011997,2]
[347030895,1735476632177,-316.45,0.00012,2]
[347030896,1735476632186,-450.0,0.00012,2]
[347030897,1735476632196,-316.45,0.00012003,2]
[347030898,1735476632205,-316.45,0.00012006,2]
[347030899,1735476632215,-316.45,0.00012009,2]
[347030900,1735476632225,-316.45,0.00012013,2]
[347030901,1735476632234,-316.45,0.00012016,2]
[347030902,1735476632243,-490.24,0.00012063,2]
[347030903,1735476632252,-504.2,0.00012073,2]
[347030904,1735476632262,-508.61,0.00012085,2]
[347030905,1735476632271,-497.37,0.00012085,2]
[347030906,1735476632281,-420.0,0.00012216,2]
[347030908,1735476632290,-200.0,0.00012223,2]
[347030910,1735476632300,-75415.0,0.00012257,2]
[347030911,1735476632310,-311.2068,0.00012281,2]
[347030913,1735476632319,-150.0,0.000123,2]
[347030915,1735476632329,-150.0,0.000123,2]
[347030916,1735476632338,-978.28,0.000123,2]
[347030918,1735476632348,-978.28,0.000123,2]
[347030920,1735476632357,-150.0,0.000123,2]
[347030922,1735476632366,-150.0,0.000123,2]
[347030923,1735476632376,-150.0,0.000123,2]
[347030925,1735476632385,-150.0,0.000123,2]
[347030927,1735476632395,-388.59,0.000123,2]
[347030929,1735476632404,-150.0,0.000123,2]
[347030931,1735476632413,-276.606,0.0001235,2]
[347030933,1735476632422,-734.16,0.00012503,2]
[347030934,1735476632433,-1000.0,0.00012505,2]
[347030936,1735476632442,-1000.0,0.00012659,2]
[347030938,1735476632451,-4874.0912,0.0001266,2]
[347030940,1735476632461,-56911.7236,0.0001266,2]
[347030942,1735476632470,-5000.0,0.0001266,2]
[347030943,1735476632479,-1083.9231,0.00012661,2]
[347030945,1735476632488,-503.27,0.00012661,2]
[347030948,1735476632497,-5128.8059,0.00012661,2]
[347030951,1735476632507,-2497.2714,0.00012661,2]
[347030954,1735476632518,-6103.1518,0.00012661,2]
[347030956,1735476632527,-179.9923,0.00012661,2]
[347030959,1735476632536,-371.6343,0.00012661,2]
[347030961,1735476632545,-500.0,0.00012759,2]
[347030963,1735476632554,-500.0,0.00012759,2]
[347030965,1735476632563,-500.0,0.00012759,2]
[347030967,1735476632572,-500.0,0.00012759,2]
[347030981,1735476632710,-750.34,0.00012759,2]
[347030983,1735476632729,-500.0,0.00012759,2]
[347030985,1735476632743,-500.0,0.00012759,2]
[347030986,1735476632753,-500.0,0.00012759,2]
[347030987,1735476632761,-500.0,0.00012759,2]
[347030988,1735476632770,-500.0,0.00012759,2]
[347030989,1735476632779,-500.0,0.00012759,2]
[347030990,1735476632788,-500.0,0.00012759,2]
[347030991,1735476632797,-500.0,0.00012759,2]
[347030992,1735476632806,-500.0,0.00012759,2]
[347030993,1735476632816,-500.0,0.00012759,2]
[347030994,1735476632825,-500.0,0.00012759,2]
[347030995,1735476632835,-325.8375073,0.00012759,2]
[347030996,1735476632844,-500.0,0.00012759,2]
[347030997,1735476632853,-500.0,0.00012759,2]
[347030998,1735476632862,-500.0,0.00012759,2]
[347031000,1735476632871,-635.63,0.00012759,2]
[347031001,1735476632880,-500.0,0.00012759,2]
[347031003,1735476632889,-500.0,0.00012759,2]
[347031005,1735476632899,-500.0,0.00012759,2]
[347031007,1735476632909,-2246.43,0.00012759,2]
[347031009,1735476632919,-500.0,0.00012759,2]
[347031011,1735476632928,-633.56,0.00012759,2]
[347031013,1735476632938,-500.0,0.00012759,2]
[347031015,1735476632948,-500.0,0.00012759,2]
[347031017,1735476632957,-500.0,0.00012759,2]
[347031019,1735476632967,-500.0,0.00012759,2]
[347031021,1735476632976,-1089.58,0.00012759,2]
[347031023,1735476632986,-500.0,0.00012759,2]
[347031025,1735476632995,-500.0,0.00012759,2]
[347031027,1735476633004,-500.0,0.00012759,2]
[347031029,1735476633014,-4054.85,0.00012759,2]
[347031031,1735476633024,-500.0,0.00012759,2]
[347031033,1735476633033,-500.0,0.00012759,2]
[347031035,1735476633045,-500.0,0.00012759,2]
[347031037,1735476633055,-500.0,0.00012759,2]
[347031039,1735476633065,-575.91,0.00012759,2]
[347031041,1735476633074,-500.0,0.00012759,2]
[347031043,1735476633084,-500.0,0.00012759,2]
[347031045,1735476633094,-343.32225136,0.00012759,2]
[347031048,1735476633114,-156.67774864,0.00012759,2]
[347031050,1735476633124,-500.0,0.00012759,2]
[347031052,1735476633134,-500.0,0.00012759,2]
[347031054,1735476633144,-500.0,0.00012759,2]
[347031056,1735476633154,-500.0,0.00012759,2]
[347031058,1735476633164,-1834.63,0.00012759,2]
[347031060,1735476633174,-500.0,0.00012759,2]
[347031062,1735476633184,-500.0,0.00012759,2]
[347031064,1735476633193,-500.0,0.00012759,2]
[347031066,1735476633203,-500.0,0.00012759,2]
[347031068,1735476633212,-6141.98,0.00012759,2]
[347031070,1735476633222,-500.0,0.00012759,2]
[347031072,1735476633231,-500.0,0.00012759,2]
[347031074,1735476633241,-500.0,0.00012759,2]
[347031076,1735476633250,-500.0,0.00012759,2]
[347031078,1735476633260,-500.0,0.00012759,2]
[347031080,1735476633269,-666.92,0.00012759,2]
[347031082,1735476633279,-500.0,0.00012759,2]
[347031084,1735476633288,-2840.71,0.00012759,2]
[347031086,1735476633297,-479.50655926,0.00012759,2]
[347031088,1735476633306,-500.0,0.00012759,2]
[347031090,1735476633316,-500.0,0.00012759,2]
[347031092,1735476633327,-500.0,0.00012759,2]
[347031094,1735476633336,-500.0,0.00012759,2]
[347031096,1735476633345,-376.23457655,0.00012759,2]
[347031100,1735476633377,-123.76542345,0.00012759,2]
[347031102,1735476633387,-781.83297002,0.00012759,2]
[347031104,1735476633399,-4436.11702998,0.00012759,2]
[347031106,1735476633408,-500.0,0.00012759,2]
[347031108,1735476633417,-504.51266303,0.00012759,2]
[347031110,1735476633426,-500.0,0.00012759,2]